fUST/lending_fUST_20250216
["ID","MTS","AMOUNT","RATE_DAILY","PERIOD"]
[353241216,1739707832634,-900.0,8.22e-05,2]
[353241217,1739707832644,-163.51748,8.656e-05,2]
[353241218,1739707832654,-163.51748,8.665e-05,2]
[353241220,1739707832664,-246.25395729,8.733e-05,2]
[353241295,1739707838424,-253.74604271,8.733e-05,2]
[353241297,1739707838433,-2.30650809,8.733e-05,2]
[353241302,1739707838478,-497.69349191,8.733e-05,2]
[353241304,1739707838488,-283.57943854,8.75e-05,2]
[353241420,1739707840639,-16.42056146,8.75e-05,2]
[353241421,1739707840649,-1004.88,8.751e-05,2]
[353241422,1739707840658,-500.0,8.751e-05,2]
[353241423,1739707840667,-3046.245211,8.751e-05,2]
[353241462,1739707843577,-2723.804789,8.751e-05,2]
[353241463,1739707843590,-2197.61,8.751e-05,2]
[353241464,1739707843603,-2507.74,8.751e-05,2]
[353241465,1739707843616,-500.0,8.751e-05,2]
[353241466,1739707843628,-500.0,8.751e-05,2]
[353241467,1739707843641,-544.19,8.751e-05,2]
[353241468,1739707843653,-500.0,8.751e-05,2]
[353241469,1739707843666,-500.0,8.751e-05,2]
[353241470,1739707843678,-500.0,8.751e-05,2]
[353241471,1739707843691,-804.08,8.751e-05,2]
[353241472,1739707843704,-500.0,8.752e-05,2]
[353241473,1739707843716,-500.0,8.752e-05,2]
[353241474,1739707843728,-155.10823192,8.752e-05,2]
[353241475,1739707843741,-500.0,8.752e-05,2]
[353241476,1739707843753,-500.0,8.752e-05,2]
[353241477,1739707843765,-713.91,8.752e-05,2]
[353241478,1739707843777,-500.0,8.752e-05,2]
[353241479,1739707843789,-500.0,8.752e-05,2]
[353241480,1739707843802,-500.0,8.752e-05,2]
[353241481,1739707843815,-567.61,8.752e-05,2]
[353241482,1739707843827,-602.21,8.752e-05,2]
[353241483,1739707843840,-177.33489397,8.752e-05,2]
[353241484,1739707843853,-500.0,8.752e-05,2]
[353241485,1739707843865,-500.0,8.752e-05,2]
[353241486,1739707843877,-773.0,8.752e-05,2]
[353241487,1739707843890,-500.0,8.752e-05,2]
[353241488,1739707843904,-625.41,8.752e-05,2]
[353241489,1739707843916,-500.0,8.752e-05,2]
[353241490,1739707843928,-500.0,8.752e-05,2]
[353241491,1739707843941,-500.0,8.752e-05,2]
[353241492,1739707843954,-500.0,8.752e-05,2]
[353241493,1739707843967,-500.0,8.752e-05,2]
[353241494,1739707843977,-598.9347213,8.752e-05,2]
[353241495,1739707843987,-317.68,8.752e-05,2]
[353241498,1739707844006,-500.0,8.752e-05,2]
[353241501,1739707844211,-500.0,8.752e-05,2]
[353241502,1739707844231,-598.35,8.752e-05,2]
[353241503,1739707844241,-500.0,8.752e-05,2]
[353241504,1739707844251,-500.0,8.752e-05,2]
[353241505,1739707844260,-519.25639757,8.752e-05,2]
[353241506,1739707844270,-500.0,8.752e-05,2]
[353241507,1739707844279,-500.0,8.752e-05,2]
[353241508,1739707844288,-500.0,8.752e-05,2]
[353241509,1739707844298,-764.92,8.752e-05,2]
[353241510,1739707844307,-500.0,8.752e-05,2]
[353241511,1739707844316,-500.0,8.752e-05,2]
[353241512,1739707844325,-500.0,8.752e-05,2]
[353241513,1739707844335,-500.0,8.752e-05,2]
[353241514,1739707844344,-500.0,8.752e-05,2]
[353241515,1739707844353,-500.0,8.752e-05,2]
[353241516,1739707844363,-638.63,8.752e-05,2]
[353241517,1739707844372,-500.0,8.752e-05,2]
[353241518,1739707844388,-587.96,8.752e-05,2]
[353241519,1739707844398,-500.0,8.752e-05,2]
[353241520,1739707844407,-500.0,8.752e-05,2]
[353241521,1739707844416,-500.0,8.752e-05,2]
[353241522,1739707844426,-500.0,8.752e-05,2]
[353241523,1739707844435,-500.0,8.752e-05,2]
[353241524,1739707844444,-500.0,8.752e-05,2]
[353241525,1739707844454,-500.0,8.752e-05,2]
[353241526,1739707844463,-500.0,8.752e-05,2]
[353241527,1739707844472,-500.0,8.752e-05,2]
[353241528,1739707844481,-500.0,8.752e-05,2]
[353241529,1739707844491,-500.0,8.752e-05,2]
[353241530,1739707844502,-500.0,8.752e-05,2]
[353241531,1739707844512,-500.0,8.752e-05,2]
[353241532,1739707844522,-500.0,8.752e-05,2]
[353241533,1739707844531,-500.0,8.752e-05,2]
[353241534,1739707844540,-500.0,8.752e-05,2]
[353241535,1739707844550,-2655.57,8.752e-05,2]
[353241536,1739707844559,-500.0,8.752e-05,2]
[353241537,1739707844569,-521.63,8.752e-05,2]
[353241538,1739707844579,-500.0,8.752e-05,2]
[353241539,1739707844589,-500.0,8.752e-05,2]
[353241540,1739707844599,-500.0,8.752e-05,2]
[353241541,1739707844609,-1400.31,8.752e-05,2]
[353241542,1739707844619,-730.78,8.752e-05,2]
[353241543,1739707844628,-500.0,8.752e-05,2]
[353241544,1739707844638,-1047.14,8.752e-05,2]
[353241545,1739707844648,-2742.98,8.752e-05,2]
[353241546,1739707844658,-500.0,8.752e-05,2]
[353241547,1739707844668,-500.0,8.752e-05,2]
[353241548,1739707844678,-552.69,8.752e-05,2]
[353241549,1739707844690,-500.0,8.752e-05,2]
[353241550,1739707844699,-820.12,8.752e-05,2]
[353241551,1739707844709,-500.0,8.752e-05,2]
[353241552,1739707844719,-500.0,8.752e-05,2]
[353241553,1739707844728,-1073.9,8.752e-05,2]
[353241554,1739707844738,-500.0,8.752e-05,2]
[353241555,1739707844747,-500.0,8.752e-05,2]
[353241556,1739707844756,-500.0,8.752e-05,2]
[353241557,1739707844766,-500.0,8.752e-05,2]
[353241558,1739707844776,-332.11306494,8.752e-05,2]
[353241559,1739707844789,-500.0,8.752e-05,2]
[353241560,1739707844798,-500.0,8.752e-05,2]
[353241561,1739707844808,-500.0,8.752e-05,2]
[353241562,1739707844819,-500.0,8.752e-05,2]
[353241563,1739707844828,-642.27,8.752e-05,2]
[353241564,1739707844838,-500.0,8.752e-05,2]
[353241565,1739707844847,-500.0,8.752e-05,2]
[353241566,1739707844856,-500.0,8.752e-05,2]
[353241567,1739707844866,-500.0,8.752e-05,2]
[353241568,1739707844875,-637.69,8.752e-05,2]
[353241569,1739707844885,-500.0,8.752e-05,2]
[353241570,1739707844895,-605.71,8.752e-05,2]
[353241571,1739707844905,-500.0,8.752e-05,2]
[353241572,1739707844915,-500.0,8.752e-05,2]
[353241573,1739707844924,-1083.66,8.752e-05,2]
[353241574,1739707844933,-500.0,8.752e-05,2]
[353241575,1739707844943,-2485.28,8.752e-05,2]
[353241576,1739707844953,-641.83464307,8.752e-05,2]
[353241577,1739707844962,-500.0,8.752e-05,2]
[353241578,1739707844971,-500.0,8.752e-05,2]
[353241579,1739707844981,-500.0,8.752e-05,2]
[353241580,1739707844990,-500.0,8.752e-05,2]
[353241581,1739707844999,-500.0,8.752e-05,2]
[353241582,1739707845009,-603.25,8.752e-05,2]
[353241583,1739707845018,-699.75,8.752e-05,2]
[353241584,1739707845028,-500.0,8.752e-05,2]
[353241585,1739707845037,-1183.23,8.752e-05,2]
[353241586,1739707845048,-187.27586836,8.752e-05,2]
[353241587,1739707845248,-312.72413164,8.752e-05,2]
[353241588,1739707845258,-500.0,8.752e-05,2]
[353241589,1739707845267,-1311.73,8.752e-05,2]
[353241590,1739707845276,-500.0,8.752e-05,2]
[353241591,1739707845286,-500.0,8.752e-05,2]
[353241592,1739707845295,-500.0,8.752e-05,2]
[353241593,1739707845304,-500.0,8.752e-05,2]
[353241594,1739707845314,-500.0,8.752e-05,2]
[353241595,1739707845324,-837.6,8.752e-05,2]
[353241596,1739707845333,-500.0,8.752e-05,2]
[353241597,1739707845343,-823.87,8.752e-05,2]
[353241598,1739707845352,-500.0,8.752e-05,2]
[353241599,1739707845361,-1050.13,8.752e-05,2]
[353241600,1739707845370,-500.0,8.752e-05,2]
[353241601,1739707845384,-500.0,8.752e-05,2]
[353241602,1739707845393,-236.11548078,8.752e-05,2]
[353241603,1739707845402,-649.45,8.752e-05,2]
[353241604,1739707845411,-500.0,8.752e-05,2]
[353241605,1739707845422,-69.44067905,8.752e-05,2]
[353241606,1739707845433,-305.59419241,8.752e-05,2]
[353241607,1739707845443,-190.40580753,8.752e-05,2]
[353241647,1739707846764,-309.59419247,8.752e-05,2]
[353241648,1739707846774,-500.0,8.752e-05,2]
[353241649,1739707846783,-956.82656902,8.752e-05,2]
[353241650,1739707846801,-1949.46343098,8.752e-05,2]
[353241652,1739707846810,-500.0,8.752e-05,2]
[353241653,1739707846821,-500.0,8.752e-05,2]
[353241654,1739707846830,-383.95072787,8.752e-05,2]
[353241655,1739707846842,-116.04927213,8.752e-05,2]
[353241656,1739707846852,-500.0,8.752e-05,2]
[353241657,1739707846862,-500.0,8.752e-05,2]
[353241658,1739707846872,-566.16251725,8.752e-05,2]
[353241659,1739707846882,-499.63457526,8.752e-05,2]
[353241661,1739707846892,-500.0,8.752e-05,2]
[353241663,1739707846902,-500.0,8.752e-05,2]
[353241665,1739707846911,-500.0,8.752e-05,2]
[353241667,1739707846921,-500.0,8.752e-05,2]
[353241669,1739707846930,-1856.96,8.752e-05,2]
[353241671,1739707846940,-500.0,8.752e-05,2]
[353241673,1739707846950,-500.0,8.752e-05,2]
[353241676,1739707846960,-504.98460337,8.752e-05,2]
[353241678,1739707846969,-500.0,8.752e-05,2]
[353241680,1739707846979,-841.86,8.752e-05,2]
[353241682,1739707846989,-501.00463615,8.752e-05,2]
[353241684,1739707846998,-578.25,8.752e-05,2]
[353241686,1739707847008,-714.74,8.752e-05,2]
[353241688,1739707847018,-500.0,8.752e-05,2]
[353241690,1739707847027,-500.0,8.752e-05,2]
[353241692,1739707847037,-500.0,8.752e-05,2]
[353241694,1739707847046,-2209.1,8.752e-05,2]
[353241696,1739707847056,-500.0,8.752e-05,2]
[353241698,1739707847065,-5456.93,8.752e-05,2]
[353241700,1739707847076,-500.0,8.752e-05,2]
[353241702,1739707847085,-729.61,8.752e-05,2]
[353241704,1739707847095,-500.0,8.752e-05,2]
[353241706,1739707847104,-683.6,8.752e-05,2]
[353241708,1739707847114,-500.0,8.752e-05,2]
[353241710,1739707847123,-500.0,8.752e-05,2]
[353241712,1739707847133,-10032.53321957,8.752e-05,2]
[353241716,1739707847162,-1000.0,8.752e-05,2]
[353242189,1739709032690,-900.0,8.22e-05,2]
[353242190,1739709032700,-163.517481,8.487e-05,2]
[353242191,1739709032710,-151.74224783,8.7e-05,2]
[353242192,1739709032719,-300.0,8.747e-05,2]
[353242193,1739709032728,-2517.46,8.748e-05,2]
[353242194,1739709032738,-500.0,8.748e-05,2]
[353242195,1739709032748,-316.21,8.748e-05,2]
[353242196,1739709032758,-963.01,8.748e-05,2]
[353242197,1739709032768,-503.89976115,8.749e-05,2]
[353242198,1739709032777,-3201.29,8.749e-05,2]
[353242199,1739709032787,-500.0,8.749e-05,2]
[353242200,1739709032797,-500.0,8.749e-05,2]
[353242201,1739709032806,-405.78432548,8.749e-05,2]
[353242202,1739709032816,-1176.64,8.749e-05,2]
[353242203,1739709032826,-500.0,8.749e-05,2]
[353242204,1739709032835,-500.0,8.749e-05,2]
[353242205,1739709032844,-923.33,8.749e-05,2]
[353242206,1739709032859,-500.0,8.749e-05,2]
[353242207,1739709032868,-1188.72,8.749e-05,2]
[353242208,1739709032878,-1029.16,8.749e-05,2]
[353242210,1739709032887,-500.0,8.749e-05,2]
[353242212,1739709032897,-500.0,8.749e-05,2]
[353242214,1739709032907,-329.91056156,8.749e-05,2]
[353242216,1739709032916,-256.43,8.749e-05,2]
[353242218,1739709032926,-500.0,8.749e-05,2]
[353242234,1739709033066,-500.0,8.749e-05,2]
[353242236,1739709033077,-500.0,8.749e-05,2]
[353242237,1739709033087,-500.0,8.749e-05,2]
[353242238,1739709033097,-500.0,8.749e-05,2]
[353242239,1739709033107,-500.0,8.749e-05,2]
[353242240,1739709033117,-500.0,8.749e-05,2]
[353242241,1739709033127,-500.0,8.749e-05,2]
[353242242,1739709033137,-500.0,8.749e-05,2]
[353242243,1739709033148,-353.80849707,8.749e-05,2]
[353242244,1739709033158,-500.0,8.749e-05,2]
[353242245,1739709033168,-500.0,8.749e-05,2]
[353242246,1739709033178,-500.0,8.749e-05,2]
[353242247,1739709033187,-500.0,8.749e-05,2]
[353242248,1739709033197,-500.0,8.749e-05,2]
[353242249,1739709033207,-650.78723274,8.749e-05,2]
[353242250,1739709033217,-282.11269978,8.749e-05,2]
[353242251,1739709033227,-500.0,8.749e-05,2]
[353242252,1739709033237,-500.0,8.749e-05,2]
[353242253,1739709033247,-1497.72,8.749e-05,2]
[353242254,1739709033256,-1201.63,8.749e-05,2]
[353242255,1739709033266,-500.0,8.749e-05,2]
[353242256,1739709033275,-500.0,8.749e-05,2]
[353242257,1739709033285,-694.46,8.749e-05,2]
[353242258,1739709033294,-500.0,8.749e-05,2]
[353242259,1739709033304,-500.0,8.749e-05,2]
[353242260,1739709033314,-6640.63,8.749e-05,2]
[353242261,1739709033323,-1195.81,8.749e-05,2]
[353242262,1739709033333,-2119.51,8.749e-05,2]
[353242263,1739709033343,-500.0,8.749e-05,2]
[353242264,1739709033353,-829.76,8.749e-05,2]
[353242265,1739709033363,-661.45,8.749e-05,2]
[353242266,1739709033373,-2338.22,8.749e-05,2]
[353242267,1739709033382,-500.0,8.749e-05,2]
[353242268,1739709033392,-3016.23,8.749e-05,2]
[353242269,1739709033401,-6398.62,8.749e-05,2]
[353242270,1739709033411,-604.85,8.749e-05,2]
[353242271,1739709033421,-3330.7,8.749e-05,2]
[353242272,1739709033430,-500.0,8.749e-05,2]
[353242273,1739709033439,-500.0,8.749e-05,2]
[353242274,1739709033449,-617.17,8.749e-05,2]
[353242275,1739709033458,-500.0,8.749e-05,2]
[353242276,1739709033467,-2967.77,8.749e-05,2]
[353242277,1739709033476,-500.0,8.749e-05,2]
[353242278,1739709033485,-916.44,8.749e-05,2]
[353242279,1739709033494,-580.62691748,8.75e-05,2]
[353242280,1739709033503,-500.0,8.75e-05,2]
[353242281,1739709033512,-367.91592911,8.75e-05,2]
[353242282,1739709033521,-500.0,8.75e-05,2]
[353242283,1739709033530,-500.0,8.75e-05,2]
[353242284,1739709033540,-500.0,8.75e-05,2]
[353242285,1739709033549,-500.0,8.75e-05,2]
[353242286,1739709033558,-445.0,8.75e-05,2]
[353242287,1739709033568,-500.0,8.75e-05,2]
[353242288,1739709033578,-500.0,8.75e-05,2]
[353242289,1739709033587,-645.13118591,8.75e-05,2]
[353242290,1739709033596,-500.0,8.75e-05,2]
[353242291,1739709033606,-500.0,8.75e-05,2]
[353242292,1739709033615,-500.0,8.75e-05,2]
[353242293,1739709033625,-500.0,8.75e-05,2]
[353242294,1739709033635,-500.0,8.75e-05,2]
[353242295,1739709033644,-500.0,8.75e-05,2]
[353242296,1739709033654,-500.0,8.75e-05,2]
[353242297,1739709033664,-500.0,8.75e-05,2]
[353242298,1739709033674,-402.32676961,8.75e-05,2]
[353242299,1739709033683,-500.0,8.75e-05,2]
[353242300,1739709033693,-500.0,8.75e-05,2]
[353242301,1739709033703,-500.0,8.75e-05,2]
[353242302,1739709033713,-500.0,8.75e-05,2]
[353242303,1739709033722,-500.0,8.75e-05,2]
[353242304,1739709033732,-803.76,8.75e-05,2]
[353242305,1739709033742,-500.0,8.75e-05,2]
[353242306,1739709033751,-500.0,8.75e-05,2]
[353242307,1739709033761,-500.0,8.75e-05,2]
[353242308,1739709033771,-500.0,8.75e-05,2]
[353242309,1739709033780,-627.29,8.75e-05,2]
[353242310,1739709033790,-500.0,8.75e-05,2]
[353242311,1739709033800,-669.51,8.75e-05,2]
[353242312,1739709033809,-500.0,8.75e-05,2]
[353242313,1739709033818,-500.0,8.75e-05,2]
[353242314,1739709033828,-500.0,8.75e-05,2]
[353242315,1739709033837,-500.0,8.75e-05,2]
[353242316,1739709033846,-881.1,8.75e-05,2]
[353242317,1739709033859,-682.69,8.75e-05,2]
[353242318,1739709033869,-500.0,8.75e-05,2]
[353242319,1739709033878,-500.0,8.75e-05,2]
[353242320,1739709033888,-546.46,8.75e-05,2]
[353242321,1739709033897,-382.7660543,8.75e-05,2]
[353242322,1739709033907,-500.0,8.75e-05,2]
[353242323,1739709033916,-500.0,8.75e-05,2]
[353242324,1739709033926,-656.75,8.75e-05,2]
[353242325,1739709033937,-500.0,8.75e-05,2]
[353242326,1739709033946,-500.0,8.75e-05,2]
[353242327,1739709033956,-500.0,8.75e-05,2]
[353242328,1739709033965,-698.85,8.75e-05,2]
[353242329,1739709033976,-500.0,8.75e-05,2]
[353242330,1739709033985,-886.04,8.75e-05,2]
[353242331,1739709033996,-500.0,8.75e-05,2]
[353242332,1739709034006,-500.0,8.75e-05,2]
[353242333,1739709034015,-500.0,8.75e-05,2]
[353242334,1739709034025,-759.06,8.75e-05,2]
[353242335,1739709034034,-500.0,8.75e-05,2]
[353242336,1739709034044,-500.0,8.75e-05,2]
[353242337,1739709034053,-872.88,8.75e-05,2]
[353242338,1739709034063,-872.39,8.75e-05,2]
[353242339,1739709034073,-500.0,8.75e-05,2]
[353242340,1739709034084,-500.0,8.75e-05,2]
[353242341,1739709034093,-500.0,8.75e-05,2]
[353242342,1739709034103,-500.0,8.75e-05,2]
[353242343,1739709034113,-418.66492704,8.75e-05,2]
[353242344,1739709034123,-500.0,8.75e-05,2]
[353242345,1739709034133,-509.77496748,8.75e-05,2]
[353242346,1739709034142,-500.0,8.75e-05,2]
[353242347,1739709034151,-500.0,8.75e-05,2]
[353242348,1739709034161,-500.0,8.75e-05,2]
[353242349,1739709034170,-443.21461363,8.75e-05,2]
[353242350,1739709034180,-500.0,8.75e-05,2]
[353242351,1739709034189,-502.32481971,8.75e-05,2]
[353242352,1739709034198,-591.32935775,8.75e-05,2]
[353242353,1739709034208,-500.0,8.75e-05,2]
[353242354,1739709034218,-500.0,8.75e-05,2]
[353242355,1739709034227,-500.0,8.75e-05,2]
[353242356,1739709034237,-637.49,8.75e-05,2]
[353242357,1739709034246,-695.36,8.75e-05,2]
[353242358,1739709034256,-2634.33419444,8.75e-05,2]
[353242359,1739709034265,-646.8,8.75e-05,2]
[353242360,1739709034275,-500.0,8.75e-05,2]
[353242361,1739709034284,-500.0,8.75e-05,2]
[353242362,1739709034295,-500.0,8.75e-05,2]
[353242363,1739709034304,-500.0,8.75e-05,2]
[353242364,1739709034314,-500.0,8.75e-05,2]
[353242365,1739709034323,-500.0,8.75e-05,2]
[353242366,1739709034332,-694.76,8.75e-05,2]
[353242367,1739709034341,-620.91,8.75e-05,2]
[353242368,1739709034351,-500.0,8.75e-05,2]
[353242369,1739709034361,-500.0,8.75e-05,2]
[353242370,1739709034370,-500.0,8.75e-05,2]
[353242371,1739709034380,-500.0,8.75e-05,2]
[353242372,1739709034390,-500.0,8.75e-05,2]
[353242373,1739709034399,-500.0,8.75e-05,2]
[353242374,1739709034408,-500.0,8.75e-05,2]
[353242375,1739709034418,-718.75,8.75e-05,2]
[353242376,1739709034428,-783.66,8.75e-05,2]
[353242377,1739709034438,-1139.68,8.75e-05,2]
[353242378,1739709034447,-583.23,8.75e-05,2]
[353242379,1739709034456,-824.66,8.75e-05,2]
[353242380,1739709034466,-491.83280736,8.75e-05,2]
[353242381,1739709034476,-630.65,8.75e-05,2]
[353242382,1739709034485,-38660.49,8.75e-05,2]
[353242383,1739709034494,-500.0,8.75e-05,2]
[353242384,1739709034504,-15253.09,8.75e-05,2]
[353242385,1739709034513,-500.0,8.75e-05,2]
[353242386,1739709034522,-500.0,8.75e-05,2]
[353242387,1739709034532,-500.0,8.75e-05,2]
[353242388,1739709034541,-613.0,8.75e-05,2]
[353242389,1739709034551,-1876.34,8.75e-05,2]
[353242390,1739709034560,-1801.63,8.75e-05,2]
[353242391,1739709034569,-500.0,8.75e-05,2]
[353242392,1739709034579,-500.0,8.75e-05,2]
[353242393,1739709034588,-863.12,8.75e-05,2]
[353242394,1739709034597,-500.0,8.75e-05,2]
[353242395,1739709034606,-500.0,8.75e-05,2]
[353242396,1739709034615,-695.65,8.75e-05,2]
[353242397,1739709034625,-629.55,8.75e-05,2]
[353242398,1739709034634,-500.0,8.75e-05,2]
[353242399,1739709034644,-663.81,8.75e-05,2]
[353242400,1739709034653,-500.0,8.75e-05,2]
[353242401,1739709034662,-1310.44,8.75e-05,2]
[353242402,1739709034671,-691.74,8.75e-05,2]
[353242403,1739709034681,-500.0,8.75e-05,2]
[353242404,1739709034690,-500.0,8.75e-05,2]
[353242405,1739709034700,-500.0,8.75e-05,2]
[353242406,1739709034709,-500.0,8.75e-05,2]
[353242407,1739709034719,-554.01,8.75e-05,2]
[353242408,1739709034728,-500.0,8.75e-05,2]
[353242409,1739709034738,-957.61,8.75e-05,2]
[353242410,1739709034747,-500.0,8.75e-05,2]
[353242411,1739709034757,-500.0,8.75e-05,2]
[353242412,1739709034766,-705.72,8.75e-05,2]
[353242413,1739709034776,-151.0,8.75e-05,2]
[353242414,1739709034785,-599.16,8.75e-05,2]
[353242415,1739709034794,-151.0,8.75e-05,2]
[353242416,1739709034803,-151.0,8.75e-05,2]
[353242417,1739709034813,-151.0,8.75e-05,2]
[353242418,1739709034822,-151.0,8.75e-05,2]
[353242419,1739709034833,-151.0,8.75e-05,2]
[353242420,1739709034843,-151.0,8.75e-05,2]
[353242421,1739709034856,-151.0,8.75e-05,2]
[353242422,1739709034866,-151.0,8.75e-05,2]
[353242423,1739709034875,-151.0,8.75e-05,2]
[353242424,1739709034885,-151.0,8.75e-05,2]
[353242425,1739709034895,-158.866005,8.75e-05,2]
[353242426,1739709034904,-527.13409738,8.75e-05,2]
[353242427,1739709034914,-500.0,8.75e-05,2]
[353242428,1739709034924,-500.0,8.75e-05,2]
[353242429,1739709034935,-15250.7,8.75e-05,2]
[353242430,1739709034945,-890.12,8.75e-05,2]
[353242431,1739709034955,-500.0,8.75e-05,2]
[353242432,1739709034965,-1090.88,8.75e-05,2]
[353242433,1739709034975,-500.0,8.75e-05,2]
[353242434,1739709034985,-560.65,8.75e-05,2]
[353242435,1739709034994,-500.0,8.75e-05,2]
[353242436,1739709035004,-500.0,8.75e-05,2]
[353242437,1739709035014,-500.0,8.75e-05,2]
[353242438,1739709035023,-738.45,8.75e-05,2]
[353242439,1739709035034,-500.0,8.75e-05,2]
[353242440,1739709035043,-724.96,8.751e-05,2]
[353242441,1739709035053,-500.0,8.751e-05,2]
[353242442,1739709035063,-2080.15,8.751e-05,2]
[353242443,1739709035073,-500.0,8.751e-05,2]
[353242444,1739709035082,-500.0,8.751e-05,2]
[353242445,1739709035092,-2047.21,8.751e-05,2]
[353242446,1739709035197,-500.0,8.751e-05,2]
[353242447,1739709035208,-500.0,8.751e-05,2]
[353242448,1739709035218,-500.0,8.751e-05,2]
[353242449,1739709035227,-500.0,8.751e-05,2]
[353242450,1739709035237,-533.4,8.751e-05,2]
[353242451,1739709035246,-1970.48,8.751e-05,2]
[353242452,1739709035256,-580.63,8.751e-05,2]
[353242453,1739709035265,-500.0,8.751e-05,2]
[353242454,1739709035275,-500.0,8.751e-05,2]
[353242455,1739709035285,-730.1,8.751e-05,2]
[353242456,1739709035294,-599.59,8.751e-05,2]
[353242457,1739709035304,-151.0,8.751e-05,2]
[353242458,1739709035313,-151.0,8.751e-05,2]
[353242459,1739709035322,-151.0,8.751e-05,2]
[353242460,1739709035331,-151.0,8.751e-05,2]
[353242461,1739709035341,-500.0,8.751e-05,2]
[353242462,1739709035350,-2634.33419444,8.752e-05,2]
[353242463,1739709035361,-500.0,8.752e-05,2]
[353242464,1739709035370,-291.03854298,8.752e-05,2]
[353242465,1739709035380,-453.38631141,8.752e-05,2]
[353242466,1739709035390,-500.0,8.752e-05,2]
[353242467,1739709035400,-599.19,8.752e-05,2]
[353242468,1739709035409,-998.73,8.752e-05,2]
[353242469,1739709035419,-500.0,8.752e-05,2]
[353242470,1739709035428,-500.0,8.752e-05,2]
[353242471,1739709035438,-500.0,8.752e-05,2]
[353242472,1739709035447,-500.0,8.752e-05,2]
[353242473,1739709035457,-500.0,8.752e-05,2]
[353242474,1739709035466,-500.0,8.752e-05,2]
[353242475,1739709035478,-500.0,8.752e-05,2]
[353242476,1739709035487,-500.0,8.752e-05,2]
[353242477,1739709035497,-1201.74,8.752e-05,2]
[353242478,1739709035507,-500.0,8.752e-05,2]
[353242479,1739709035516,-500.0,8.752e-05,2]
[353242480,1739709035526,-500.0,8.752e-05,2]
[353242481,1739709035536,-500.0,8.752e-05,2]
[353242482,1739709035546,-2017.37,8.752e-05,2]
[353242483,1739709035555,-891.09,8.752e-05,2]
[353242484,1739709035565,-2634.33419444,8.754e-05,2]
[353242485,1739709035574,-2634.33419444,8.755e-05,2]
[353242486,1739709035584,-418.91076104,8.756e-05,2]
[353242487,1739709035593,-500.0,8.756e-05,2]
[353242488,1739709035603,-309.28328664,8.756e-05,2]
[353242489,1739709035613,-555.34073917,8.756e-05,2]
[353242490,1739709035623,-131503.05658378,8.757e-05,2]
[353242491,1739709035648,-400.22611081,8.75e-05,2]
[353242492,1739709035658,-96766.81303729,8.757e-05,2]
[353242493,1739709035667,-450.0,8.757e-05,2]
[353242494,1739709035677,-450.0,8.757e-05,2]
[353242495,1739709035687,-2634.33419444,8.757e-05,2]
[353242496,1739709035697,-63702.36,8.76e-05,2]
[353242497,1739709035707,-151.0,8.8e-05,2]
[353242498,1739709035718,-8190.0,8.8e-05,2]
[353242499,1739709035728,-4095.0,8.8e-05,2]
[353242500,1739709035737,-4095.0,8.8e-05,2]
[353242501,1739709035747,-4095.0,8.8e-05,2]
[353242502,1739709035756,-4095.0,8.8e-05,2]
[353242503,1739709035766,-450.0,8.8e-05,2]
[353242504,1739709035776,-450.0,8.8e-05,2]
[353242505,1739709035785,-306.345728,8.8e-05,2]
[353242506,1739709035795,-156.0880938,8.8e-05,2]
[353242507,1739709035806,-215.9231093,8.8e-05,2]
[353242508,1739709035816,-355.0671123,8.8e-05,2]
[353242509,1739709035826,-355.0671123,8.8e-05,2]
[353242510,1739709035836,-354.8356461,8.8e-05,2]
[353242511,1739709035846,-1107.12218066,8.811e-05,2]
[353242512,1739709035858,-150.491,8.818e-05,2]
[353242513,1739709035869,-538.0,8.818e-05,2]
[353242514,1739709035878,-1988.447,8.818e-05,2]
[353242515,1739709035889,-2291.0,8.818e-05,2]
[353242516,1739709035906,-2517.46,8.83e-05,2]